Cogmind - Beta 16 @@@ ROGUE MODE // 2025.11.14 @ 17:08:44 Player: ChromeKnight Result: Destroyed by Y-45 Defender with Beam Rifle Performance ------------- Evolutions (0) 0 Regions Visited (3) 600 Robots Destroyed (7) 35 Value Destroyed (221) 221 Prototype IDs (0) 0 Alien Tech Used (0) 0 Bonus (0) 0 TOTAL SCORE: 856 Bonus ------- None Cogmind --------- Core Integrity 0/250 Matter 300/300 Energy 200/200 System Corruption 0% Temperature Cool (9) Movement Treading (160) Location -10/Subcaves Parts ------- > --- POWER (1) -------- Subdweller Power Source > --- PROPULSION (2) --- Improved Treads Improved Treads > --- UTILITY (2) ------ Large Storage Unit Targeting Computer > --- WEAPON (2) ------- (None) > --- INVENTORY (15) --- Improved Aluminum Leg Improved Aluminum Leg Improved Aluminum Leg Improved Aluminum Leg Combat Airjet Scrap Shield Peak State ------------ > --- POWER ------------ Light Ion Engine > --- PROPULSION ------- Improved Treads Improved Treads > --- UTILITY ---------- Large Storage Unit Targeting Computer > --- WEAPON ----------- EM Shotgun EM Shotgun > --- INVENTORY -------- Improved Treads Improved Treads Improved Aluminum Leg Improved Aluminum Leg Improved Aluminum Leg Improved Aluminum Leg Combat Airjet EM Shotgun EM Shotgun [Rating: 13] Favorites ----------- Power Light Ion Engine Engine Light Ion Engine Propulsion Improved Treads Treads Improved Treads Utility Targeting Computer Storage Large Storage Unit Processor Targeting Computer Weapon EM Shotgun Energy Gun EM Shotgun Ballistic Gun Light Assault Rifle Ballistic Cannon Light Cannon Build | -11 -10 -10 -10 ------- Run | Yrd Mat Min Sub Slots Evolved . | . . . . Power . | . . . . Propulsion . | . . . . Utility . | . . . . Weapon . | . . . . Parts Attached 19 | 6 8 1 4 Power 2 | 1 . . 1 Engine 2 | 1 . . 1 Core . | . . . . Reactor . | . . . . Propulsion 6 | 2 2 . 2 Treads 6 | 2 2 . 2 Leg . | . . . . Wheel . | . . . . Hover . | . . . . Flight . | . . . . Utility 3 | 1 2 . . Device . | . . . . Storage 2 | 1 1 . . Processor 1 | . 1 . . Hackware . | . . . . Protection . | . . . . Artifact . | . . . . Weapon 8 | 2 4 1 1 Energy Gun 5 | 1 2 1 1 Energy Cannon . | . . . . Ballistic Gun 1 | 1 . . . Ballistic Cannon 2 | . 2 . . Launcher . | . . . . Special Weapon . | . . . . Impact Weapon . | . . . . Slashing Weapon . | . . . . Piercing Weapon . | . . . . Special Melee Weapon . | . . . . Unidentified Prototypes . | . . . . Parts Lost 7 | . . 1 6 Power 1 | . . . 1 Propulsion 2 | . . . 2 Utility . | . . . . Weapon 4 | . . 1 3 Highest Loss Streak 6 | . . 1 6 To Critical Strikes . | . . . . Average Backups 5 | . 3 8 6 Power . | . . . . Propulsion 4 | . 2 6 5 Utility . | . . . . Weapon . | . . 1 . Tool/Special . | . . . . Unused Backups 9 | . 3 . 6 Power . | . . . . Propulsion 6 | . 1 . 5 Utility 2 | . 1 . 1 Weapon 1 | . 1 . . Tool/Special . | . . . . Average Slot Usage (%) 91 | . 93 99 75 Engine 13 | . 14 14 12 Treads 27 | . 28 28 27 Storage 14 | . 14 14 14 Processor 12 | . 8 14 14 Energy Gun 18 | . 15 27 6 Ballistic Gun 2 | . 6 . . Ballistic Cannon 2 | . 6 . . Peak Build Rating 13 | 6 12 13 12 Average Rating 9 | 4 8 12 9 On Entrance 7 | . 6 12 12 Avg Prop Armor Cover (%) . | . . . . Naked Turns . | . . . . Heaviest Build 29 | 10 29 29 29 Greatest Support 46 | 40 46 46 46 Greatest Overweight (x) . | . . . . Average Overweight (x) . | . . . . Largest Inventory Capacity 15 | 8 15 15 15 Average Capacity 12 | 6 9 15 15 Most Carried 9 | . 8 9 8 Average Carried 5 | . 3 8 7 Final Capacity 15 | 8 15 15 15 Final Carried 8 | . 8 8 7 Class Distribution -------------------- 100% | Mutant Dominant Class ---------------- Mutant | -10/Materials Mutant | -10/Mines Mutant | -10/Subcaves Resources | -11 -10 -10 -10 ----------- Run | Yrd Mat Min Sub Matter Collected 362 | 222 66 70 4 Remotely . | . . . . Salvage Created 222 | . 66 90 66 Parts 12 | . 5 2 5 Haulers Intercepted 1 | . 1 . . Recyclers Shooed . | . . . . Parts Field Recycled . | . . . . Retrieved Matter . | . . . . Parts Self-Destructed . | . . . . Prevented . | . . . . Parts Restored . | . . . . Kills | -11 -10 -10 -10 ------- Run | Yrd Mat Min Sub Combat Hostiles Destroyed 5 | . . 3 2 Melee 1 | . . . 1 Guns 3 | . . 2 1 AOE 1 | . . 1 . Classes Destroyed 5 | . 2 2 1 Builder 1 | . 1 . . Hauler 1 | . 1 . . Grunt 2 | . . 2 . Demolisher 1 | . . 1 . Subdweller 2 | . . . 2 Best Kill Streak 2 | . 2 2 1 Combat Bots Only 2 | . . 2 1 Max Kills in Single Turn 1 | . 1 1 1 Gunslinging . | . . . . Exploded 1 | . . 1 . Melee 1 | . . . 1 Uniques/NPCs Destroyed . | . . . . Combat | -11 -10 -10 -10 -------- Run | Yrd Mat Min Sub Hostile Shots Fired 51 | . . 9 42 Missed 14 | . . 2 12 Hits 37 | . . 7 30 Projectile 37 | . . 7 30 AOE 6 | . . 6 . Damage Taken 951 | . . 271 680 Core 256 | . . 24 232 Absorbed by Shields . | . . . . Core Remaining (%) 100 | 100 . . . Volleys Fired 24 | . 6 7 11 Largest 2 | . 2 2 2 Hottest 90 | . 60 90 90 Shots Fired 36 | . 12 12 12 Gun 34 | . 10 12 12 Cannon 2 | . 2 . . Launcher . | . . . . Special . | . . . . Kinetic 7 | . 7 . . Thermal 5 | . 5 . . Explosive . | . . . . Electromagnetic 24 | . . 12 12 Robot Hit Streak 23 | . 4 10 23 Robot Miss Streak 3 | . 3 1 1 Penetration Max . | . . . . Secondary Targets . | . . . . Shots Hit Robots 29 | . 6 11 12 Core Hits 18 | . 4 6 8 Critical Kills . | . . . . Critical Parts Destroyed . | . . . . Critical Strikes . | . . . . Melee Attacks . | . . . . Impact . | . . . . Slashing . | . . . . Piercing . | . . . . Sneak Attacks . | . . . . Combat Hostiles . | . . . . Follow-up Attacks . | . . . . Damage Inflicted 484 | . 54 240 190 Guns 352 | . 54 136 162 Cannons . | . . . . Explosions 104 | . . 104 . Melee . | . . . . Ramming 28 | . . . 28 Kinetic 24 | . 24 . . Thermal 134 | . 30 104 . Explosive . | . . . . Electromagnetic 298 | . . 136 162 Impact . | . . . . Slashing . | . . . . Piercing . | . . . . Highest Corruption . | . . . . Average Corruption . | . . . . Corruption Purged . | . . . . Corruption Blocked . | . . . . Overload Shots . | . . . . Overflow Damage 11 | . . 11 . Projectiles . | . . . . Explosions 11 | . . 11 . Melee . | . . . . Knockbacks 1 | . . . 1 Impact 1 | . . . 1 Kinetic . | . . . . Secondary . | . . . . Self-Inflicted Damage 50 | . . 50 . Shots 1 | . . 1 . Rammed 15 | . . . 15 Targets Rammed 15 | . . . 15 Kicked . | . . . . Crushed . | . . . . Highest Temperature 146 | . 20 146 . Average Temperature 53 | . 15 67 . Received Heat Transfer 216 | . . 36 180 Siege Activations . | . . . . Martial Activations . | . . . . Shielding Activations . | . . . . Robots Disrupted . | . . . . Combat Hostiles . | . . . . Robots Corrupted . | . . . . Combat Hostiles . | . . . . Parts Fried 1 | . . 1 . Impact Corruptions . | . . . . Robots Melted . | . . . . Combat Hostiles . | . . . . Parts Melted . | . . . . Heat Transferred 125 | . 75 50 . Parts Sabotaged . | . . . . Parts Stolen . | . . . . Parts Stripped . | . . . . Power Chain Reactions 1 | . . 1 . Alert | -11 -10 -10 -10 ------- Run | Yrd Mat Min Sub Maximum Alert Level . | . . . . Low Security (%) 100 | 100 100 100 . Level 1 . | . . . . Level 2 . | . . . . Level 3 . | . . . . Level 4 . | . . . . Level 5 . | . . . . High Security . | . . . . Max Security . | . . . . Peak Influence 46 | . 7 46 . Initial . | . . . . Average 3 | . . 6 . Influence Increases 119 | . 13 106 . Destroy 0b10 Robot/C 60 | . . 60 . Destroy 0b10 Robot/NC 10 | . 10 . . Destroy Leader 12 | . 2 10 . Destroy Structure 7 | . 1 6 . Lose Combat Pursuer 30 | . . 30 . Influence Decreases 119 | . 13 106 . Time Decay 109 | . 13 96 . Lost Part 10 | . . 10 . Squads Dispatched . | . . . . Investigation . | . . . . Extermination . | . . . . Reinforcement . | . . . . Assault . | . . . . Garrison . | . . . . Intercept . | . . . . Searches Triggered . | . . . . Construction Impeded . | . . . . Haulers Reinforced . | . . . . Active Scanning Responses . | . . . . Cargo Convoy Interrupts . | . . . . Stealth | -11 -10 -10 -10 --------- Run | Yrd Mat Min Sub Distress Signals . | . . . . Communications Jammed . | . . . . Distress Signals . | . . . . Times Spotted 11 | . 3 5 3 Peak Tracking Total 3 | . 3 2 2 Tactical Retreats 1 | . . 1 . Traps | -11 -10 -10 -10 ------- Run | Yrd Mat Min Sub Traps Triggered . | . . . . Indirectly . | . . . . Trap Hack Attempts . | . . . . Triggered . | . . . . Disarmed . | . . . . Reprogrammed . | . . . . Reused . | . . . . Traps Extracted . | . . . . Installed . | . . . . Triggered . | . . . . Machines | -11 -10 -10 -10 ---------- Run | Yrd Mat Min Sub Machines Disabled . | . . . . Max in Single Turn . | . . . . Machines Repaired . | . . . . Machines Dismantled . | . . . . Machines Sabotaged . | . . . . Overloaded Fab Kills . | . . . . Hacking | -11 -10 -10 -10 --------- Run | Yrd Mat Min Sub Machines Accessed 2 | . 2 . . Terminals 2 | . 2 . . Fabricators . | . . . . Repair Stations . | . . . . Recycling Units . | . . . . Scanalyzers . | . . . . Garrison Access . | . . . . Total Hacks 2 | . 2 . . Successful 1 | . 1 . . Failed 1 | . 1 . . Catastrophic 1 | . 1 . . Database Lockouts . | . . . . Manual 2 | . 2 . . Terminals 2 | . 2 . . Fabricators . | . . . . Repair Stations . | . . . . Recycling Units . | . . . . Scanalyzers . | . . . . Garrison Access . | . . . . Terminal Hacks . | . . . . Fabricator Hacks . | . . . . Repair Station Hacks . | . . . . Recycling Unit Hacks . | . . . . Scanalyzer . | . . . . Garrison Access Hacks . | . . . . Unauthorized Hacks 1 | . 1 . . Terminals 1 | . 1 . . Skim 1 | . 1 . . Fabricators . | . . . . Repair Stations . | . . . . Recycling Units . | . . . . Scanalyzers . | . . . . Garrison Access . | . . . . Data Cores Recovered . | . . . . Used . | . . . . Hacking Detections 2 | . 2 . . Full Trace Events . | . . . . Feedback Events . | . . . . Feedback Blocked . | . . . . Robot Schematics Acquired . | . . . . Robots Built . | . . . . Authchips . | . . . . Time . | . . . . Total Robot Build Rating . | . . . . Part Schematics Acquired . | . . . . Parts Built . | . . . . Authchips . | . . . . Time . | . . . . Total Part Build Rating . | . . . . Part Studies Acquired . | . . . . Parts Repaired . | . . . . Time . | . . . . Parts Recycled . | . . . . Recycled Matter . | . . . . Retrieved Matter . | . . . . Retrieved Components . | . . . . Parts Scanalyzed . | . . . . Part Schematics Acquired . | . . . . Parts Damaged . | . . . . Bothacking | -11 -10 -10 -10 ------------ Run | Yrd Mat Min Sub Used RIF Installer . | . . . . Robots Hacked . | . . . . Non-combat . | . . . . Combat . | . . . . Robot Hacks Applied . | . . . . Relay Couplers Released . | . . . . Fabnet Peak Effective % . | . . . . Robots Rewired . | . . . . Allies Hacked . | . . . . Hacks Repelled . | . . . . Allies | -11 -10 -10 -10 -------- Run | Yrd Mat Min Sub Total Allies . | . . . . Largest Group . | . . . . Highest-Rated Group . | . . . . Highest-Rated Ally . | . . . . Total Orders . | . . . . Ally Attacks . | . . . . Total Damage . | . . . . Kills . | . . . . Allies Corrupted . | . . . . Allies Melted . | . . . . Intel | -11 -10 -10 -10 ------- Run | Yrd Mat Min Sub Active Infowar (turns) . | . . . . Robot Analysis Total . | . . . . Derelict Logs Recovered 2 | . . 2 . Drone Launches . | . . . . Drone Recoveries . | . . . . Exploration | -11 -10 -10 -10 ------------- Run | Yrd Mat Min Sub Turns Passed 1451 | 78 453 603 317 Spaces Moved 797 | 46 256 342 153 Core 3 | 3 . . . Treads 794 | 43 256 342 153 Legs . | . . . . Wheels . | . . . . Hover . | . . . . Flight . | . . . . Fastest Speed 50 | 50 160 160 160 Average Speed 159 | 152 160 160 160 Slowest Speed 160 | 160 160 160 160 Overloaded Moves . | . . . . Propulsion Burnouts . | . . . . Robots Hopped . | . . . . Potential Cave-ins . | . . . . Cave-ins Triggered . | . . . . Exploration Rate (%) 30 | 4 39 70 9 Regions Visited 3 Branch Regions 2 Pre-discovered Areas . | . . . . Known Exits Taken . | . . . . Unknown Exits Taken 3 | 1 1 1 . Scrap Searched 2 | . . 2 . Spaces Dug . | . . . . Terrain Destroyed 6 | . . 6 . Melee . | . . . . Projectile . | . . . . AOE 6 | . . 6 . Terrain Rammed . | . . . . Walls Destroyed . | . . . . Machines Disabled . | . . . . Actions | -11 -10 -10 -10 --------- Run | Yrd Mat Min Sub Total 928 | 51 290 386 201 Wait 53 | . . 36 17 Move 794 | 45 255 341 153 Hop . | . . . . Pick Up 13 | . 11 1 1 Fast Attach 12 | 6 5 . 1 Attach 4 | . . 1 3 Detach . | . . . . Swap 3 | . 3 . . Drop 10 | . 10 . . Fire 24 | . 6 7 11 Melee . | . . . . Ram . | . . . . Kick . | . . . . Crush 15 | . . . 15 Escape Stasis . | . . . . Rewire . | . . . . Trap . | . . . . Miscellaneous . | . . . . Route ------- -11/Scrapyard -10/Materials (discovered 2 exits: [*Mat] / [*Min]) -10/Mines (discovered 2 exits: [*Mat] / [*Sub]) -10/Subcaves History --------- Turn | Location | Event 52 | -11/Scrapyard | Discovered new exit (range 16) 79 | -11/Scrapyard | Entered Materials 304 | -10/Materials | Build established: Mutant 308 | -10/Materials | Discovered new exit (range 16) 359 | -10/Materials | Discovered new exit (range 8) 532 | -10/Materials | Entered Mines 533 | -10/Mines | Assembled infested the area 566 | -10/Mines | Met a Derelict bent on vengeance 620 | -10/Mines | Learned 8 Materials zone layouts 964 | -10/Mines | Learned location of 2 exits from Materials 996 | -10/Mines | Discovered new exit (range 7) 1122 | -10/Mines | Discovered new exit (range 6) 1135 | -10/Mines | Entered Subcaves 1173 | -10/Subcaves | Ambushed by Subdwellers from Twisted Machinery 1215 | -10/Subcaves | Core integrity fell below 50% 1229 | -10/Subcaves | Core integrity fell below 20% 1251 | -10/Subcaves | Lost 6 parts (1p2n3w) 1452 | -10/Subcaves | Destroyed by Y-45 Defender with Beam Rifle Last Messages --------------- 01208_ Acquired Sub. Power Source. 01212_ EM Shotgun destroyed. 01214_ Slammed into X4-F8O(R). 01214_ X4-F8O(R) knocked back. 01215_ Subatomizers dissect the Corrupted Disposable Heat Sink. 01216_ Slammed into X4-F8O(R). 01220_ Imp. Treads destroyed. 01223_ Slammed into X4-F8O(R). 01225_ Acquired 4 matter. 01226_ Slammed into X4-F8O(R). 01229_ Subatomizers dissect the Corrupted Disposable Heat Sink. 01229_ Slammed into X4-F8O(R). 01231_ X4-F8O(R) destroyed. 01236_ Acquired Scrap Shield. 01257_ Subatomizers dissect the Sub. Monowheel. 01271_ Subatomizers dissect the Corrupted Sub. Optics. 01443_ Slammed into Y-45 Defender. Map ----- +----------------------------------------------------+ | ????????????????????????????????????# | | ????????????????????????????????????# %%# | | ????????????????????????????????????????# ## | | ????????????????????????????????????????## #####? | | ?????????????????????????????????????# ?## #????? | | ????????????????????????????????????? ?# #????? | | ????????????????????????????????????? ### #????? | | ?????????????????????????????????????# #?# ##???? | | ????????????????????????????????????## #?# #???? | | ????????????????????????????????????? ### #???? | | ????????????????????????????????????## ## #???? | | ???????????????????????????????????## ## ##???# | | ???????????????????????????????????# ##% #### | | ????????????????????????????????????# ## % % | | ????????????????????????????????????# | | ????????????????????????????????????# % | | ????????????######?########?????????# # | | ????????????# ### ## # #???????### # | | ????????????# ########## # | | ????????????# ## ## | | ????????????# # ### %##### ## %### ##" | | ### #######?# ##???## ## #?## "# | | %#???????## #?????#% ##?# # | | ??????# !#????????# #????## % #### # | | ??????#### #????????#Y##??## ## ## # | | ?????????## #????????#@%####""### " & # | | ??????????# ????????##%%% ""##% """ &%!## | | ?????????? ?????????### " """""""### = #? | | ????????? ???????????### # ##"""#?# %!"#? | | ????????# ### ?????????????## %###"""##?# %###? | | ????????# ??# ??????????????## ""##?# "#??? | | ???????? ???# ???????????????# # "#?#" "??? | | ??????? ????? ??????????????# ### #?#""" ?? | | ??????? ????? ??????????????####?## #?## ? | | ?????? % ?????? ????????????????????#%%##??# ? | | ??????? ??????? ????????????????????# ##???# # | | ???????????????# ????????????????????###????## # | | ????????????????#?????????????????????????????# ? | | ??????????????????????????????????????????????? ?? | | ?????????????????????????????????????????????????? | | ?????????????????????????????????????????????????? | | ?????????????????????????????????????????????????? | | ?????????????????????????????????????????????????? | | ?????????????????????????????????????????????????? | | ?????????????????????????????????????????????????? | | ?????????????????????????????????????????????????? | | ?????????????????????????????????????????????????? | | ?????????????????????????????????????????????????? | | ?????????????????????????????????????????????????? | | ?????????????????????????????????????????????????? | +----------------------------------------------------+ Best States ------------- Heat Dissipation 25 Energy Generation 15 Energy Capacity 200 Matter Stores 300 Matter Capacity 300 Sight Range 16 Terrain Scan Density 10 Evasion (%) 40 Targeting Accuracy 5 Recoil Reduction 2 Item Schematics ----------------- None Robot Schematics ------------------ None Fabricated ------------ Nothing Repaired ---------- Nothing Studied --------- None Alien Tech Used ----------------- None Achievements -------------- None Challenges ------------ None Game ------ Seed EfficiencyLightScanner Manual? 0 Play Time 00:05:32 Cumulative 539.8 hours Start 2025.11.14 @ 17:04:25 End 2025.11.14 @ 17:08:44 Sessions 1 Manual Loads 0 Difficulty Rogue Special Mode None Game No. 873 Rogue 718 Adventurer 148 Explorer 7 Win Type - Total 26 Types 20/1/4/1/0/0/0/0/0/0 Lore% 78 Gallery% 80 Achievement% 65 Wizard Run 0 Options --------- Layout 1 ASCII 0 Keyboard 0 Movement Numpad Keybinds 0 Fullscreen 2 Font 24/Smallcaps Map View 50x35 Zoom Use 0% Tactical HUD 1 Map Filters NONE Filters NONE Steam 1 RUN: 2156a25f-0ead-4f42-b1fa-cea9999e66d3